fUST/lending_fUST_20260115
["ID","MTS","AMOUNT","RATE_DAILY","PERIOD"]
[402028971,1768487453401,-500.0,0.00021917,2]
[402028972,1768487453410,-500.0,0.00021917,2]
[402028973,1768487453420,-500.0,0.00021917,2]
[402028974,1768487453429,-1000.0,0.00021917,2]
[402028975,1768487453439,-500.0,0.00021917,2]
[402028976,1768487453448,-1545.96,0.00021917,2]
[402028977,1768487453458,-500.0,0.00021917,2]
[402028978,1768487453467,-500.0,0.00021917,2]
[402028979,1768487453476,-500.0,0.00021917,2]
[402028980,1768487453486,-500.0,0.00021917,2]
[402028981,1768487453495,-500.0,0.00021917,2]
[402028982,1768487453504,-1941.59,0.00021917,2]
[402028983,1768487453513,-535.82565247,0.00021917,2]
[402028984,1768487453523,-500.0,0.00021917,2]
[402028985,1768487453532,-500.0,0.00021917,2]
[402028986,1768487453541,-715.06,0.00021917,2]
[402028987,1768487453551,-500.0,0.00021917,2]
[402028988,1768487453561,-3110.44,0.00021917,2]
[402028989,1768487453570,-588.76,0.00021917,2]
[402028990,1768487453580,-1128.48,0.00021917,2]
[402028991,1768487453589,-1681.67,0.00021917,2]
[402028992,1768487453598,-655.09,0.00021917,2]
[402028993,1768487453608,-500.0,0.00021917,2]
[402028994,1768487453617,-1099.54,0.00021917,2]
[402028995,1768487453626,-500.0,0.00021917,2]
[402028996,1768487453635,-557.65,0.00021917,2]
[402028997,1768487453645,-1284.29,0.00021917,2]
[402028998,1768487453653,-1533.51,0.00021917,2]
[402028999,1768487453663,-808.26,0.00021917,2]
[402029000,1768487453673,-500.0,0.00021917,2]
[402029001,1768487453689,-525.85,0.00021917,2]
[402029002,1768487453698,-500.0,0.00021917,2]
[402029003,1768487453707,-500.0,0.00021917,2]
[402029004,1768487453717,-512.38113308,0.00021917,2]
[402029005,1768487453726,-2771.44,0.00021917,2]
[402029006,1768487453735,-500.0,0.00021917,2]
[402029007,1768487453745,-500.0,0.00021917,2]
[402029008,1768487453754,-1423.97,0.00021917,2]
[402029009,1768487453763,-500.0,0.00021917,2]
[402029010,1768487453772,-557.09,0.00021917,2]
[402029011,1768487453781,-500.0,0.00021917,2]
[402029012,1768487453791,-500.0,0.00021917,2]
[402029013,1768487453802,-1233.03,0.00021917,2]
[402029014,1768487453811,-1167.61,0.00021917,2]
[402029015,1768487453820,-500.0,0.00021917,2]
[402029016,1768487453830,-500.0,0.00021917,2]
[402029017,1768487453839,-500.0,0.00021917,2]
[402029018,1768487453848,-1534.96,0.00021917,2]
[402029019,1768487453857,-500.0,0.00021917,2]
[402029020,1768487453866,-1861.19,0.00021917,2]
[402029021,1768487453876,-500.0,0.00021917,2]
[402029022,1768487453885,-1039.72,0.00021917,2]
[402029023,1768487453895,-500.0,0.00021917,2]
[402029024,1768487453904,-500.0,0.00021917,2]
[402029025,1768487453914,-500.0,0.00021917,2]
[402029026,1768487453923,-500.0,0.00021917,2]
[402029027,1768487453933,-2322.08,0.00021917,2]
[402029028,1768487453943,-1228.41,0.00021917,2]
[402029029,1768487453952,-1400.09,0.00021917,2]
[402029030,1768487453962,-500.0,0.00021917,2]
[402029031,1768487453972,-500.0,0.00021917,2]
[402029032,1768487453981,-500.0,0.00021917,2]
[402029033,1768487453991,-500.0,0.00021917,2]
[402029034,1768487454143,-746.0,0.00021917,2]
[402029035,1768487454153,-500.0,0.00021917,2]
[402029036,1768487454165,-1884.08,0.00021917,2]
[402029037,1768487454181,-500.0,0.00021917,2]
[402029038,1768487454197,-500.0,0.00021917,2]
[402029039,1768487454207,-500.0,0.00021917,2]
[402029040,1768487454217,-1021.15,0.00021917,2]
[402029041,1768487454226,-500.0,0.00021917,2]
[402029042,1768487454245,-1000.0,0.00021917,2]
[402029043,1768487454267,-500.0,0.00021917,2]
[402029044,1768487454280,-1648.9,0.00021917,2]
[402029045,1768487454290,-500.0,0.00021917,2]
[402029046,1768487454300,-500.0,0.00021917,2]
[402029047,1768487454310,-500.0,0.00021917,2]
[402029048,1768487454319,-2198.26,0.00021917,2]
[402029049,1768487454328,-500.0,0.00021917,2]
[402029050,1768487454337,-500.0,0.00021917,2]
[402029051,1768487454346,-877.89,0.00021917,2]
[402029052,1768487454355,-500.0,0.00021917,2]
[402029053,1768487454365,-794.94,0.00021917,2]
[402029054,1768487454373,-922.97,0.00021917,2]
[402029055,1768487454382,-500.0,0.00021917,2]
[402029056,1768487454391,-500.0,0.00021917,2]
[402029057,1768487454400,-500.0,0.00021917,2]
[402029058,1768487454409,-500.0,0.00021917,2]
[402029059,1768487454418,-935.92,0.00021917,2]
[402029060,1768487454428,-500.0,0.00021917,2]
[402029061,1768487454437,-500.0,0.00021917,2]
[402029062,1768487454447,-500.0,0.00021917,2]
[402029063,1768487454457,-500.0,0.00021917,2]
[402029064,1768487454468,-571.51167908,0.00021917,2]
[402029065,1768487454478,-614.98188956,0.00021917,2]
[402029066,1768487454489,-500.0,0.00021917,2]
[402029067,1768487454500,-500.0,0.00021917,2]
[402029068,1768487454509,-1065.61,0.00021917,2]
[402029069,1768487454518,-500.0,0.00021917,2]
[402029070,1768487454527,-206.72945588,0.00021917,2]
[402029071,1768487454536,-1014.07,0.00021917,2]
[402029072,1768487454545,-500.0,0.00021917,2]
[402029073,1768487454554,-1537.08,0.00021917,2]
[402029074,1768487454563,-1636.48,0.00021917,2]
[402029075,1768487454572,-500.0,0.00021917,2]
[402029076,1768487454581,-500.0,0.00021917,2]
[402029077,1768487454590,-500.0,0.00021917,2]
[402029078,1768487454599,-500.0,0.00021917,2]
[402029079,1768487454608,-500.0,0.00021917,2]
[402029080,1768487454616,-821.23,0.00021917,2]
[402029081,1768487454625,-500.0,0.00021917,2]
[402029082,1768487454635,-500.0,0.00021917,2]
[402029083,1768487454643,-500.0,0.00021917,2]
[402029084,1768487454652,-1186.09,0.00021917,2]
[402029085,1768487454661,-500.0,0.00021917,2]
[402029086,1768487454670,-500.0,0.00021917,2]
[402029087,1768487454679,-500.0,0.00021917,2]
[402029088,1768487454688,-698.6,0.00021917,2]
[402029089,1768487454698,-619.33,0.00021917,2]
[402029090,1768487454707,-1653.81,0.00021917,2]
[402029091,1768487454717,-658.74,0.00021917,2]
[402029092,1768487454726,-500.0,0.00021917,2]
[402029093,1768487454735,-543.2425879,0.00021917,2]
[402029094,1768487454745,-500.0,0.00021917,2]
[402029095,1768487454754,-1186.08,0.00021917,2]
[402029096,1768487454763,-500.0,0.00021917,2]
[402029097,1768487454772,-500.0,0.00021917,2]
[402029098,1768487454781,-1305.18,0.00021917,2]
[402029099,1768487454791,-704.3,0.00021917,2]
[402029100,1768487454801,-1281.91,0.00021917,2]
[402029101,1768487454811,-165.17757925,0.00021917,2]
[402029102,1768487454820,-500.0,0.00021917,2]
[402029103,1768487454829,-500.0,0.00021917,2]
[402029104,1768487454839,-500.0,0.00021917,2]
[402029105,1768487454848,-561.73,0.00021917,2]
[402029106,1768487454857,-689.04,0.00021917,2]
[402029107,1768487454866,-500.0,0.00021917,2]
[402029108,1768487454876,-500.0,0.00021917,2]
[402029109,1768487454885,-861.72,0.00021917,2]
[402029110,1768487454894,-500.0,0.00021917,2]
[402029111,1768487454903,-500.0,0.00021917,2]
[402029112,1768487454912,-500.0,0.00021917,2]
[402029113,1768487454921,-500.0,0.00021917,2]
[402029114,1768487454931,-500.0,0.00021917,2]
[402029115,1768487454940,-529.2,0.00021917,2]
[402029116,1768487454949,-1188.26,0.00021917,2]
[402029117,1768487454958,-527.99763591,0.00021917,2]
[402029118,1768487454967,-434.12749926,0.00021917,2]
[402029119,1768487454976,-2267.66,0.00021917,2]
[402029120,1768487454985,-500.0,0.00021917,2]
[402029121,1768487454994,-1444.14,0.00021917,2]
[402029122,1768487455003,-500.0,0.00021917,2]
[402029123,1768487455013,-777.74,0.00021917,2]
[402029124,1768487455022,-500.0,0.00021917,2]
[402029125,1768487455032,-1765.95,0.00021917,2]
[402029126,1768487455042,-500.0,0.00021917,2]
[402029127,1768487455051,-1610.68,0.00021917,2]
[402029128,1768487455061,-500.0,0.00021917,2]
[402029129,1768487455070,-1739.28,0.00021917,2]
[402029130,1768487455079,-500.0,0.00021917,2]
[402029131,1768487455089,-500.0,0.00021917,2]
[402029132,1768487455099,-854.58,0.00021917,2]
[402029133,1768487455108,-500.0,0.00021917,2]
[402029134,1768487455117,-1493.61,0.00021917,2]
[402029135,1768487455127,-519.12,0.00021917,2]
[402029136,1768487455136,-1785.12,0.00021917,2]
[402029137,1768487455145,-500.0,0.00021917,2]
[402029138,1768487455154,-500.0,0.00021917,2]
[402029139,1768487455164,-1605.9,0.00021917,2]
[402029140,1768487455173,-1386.68,0.00021917,2]
[402029141,1768487455182,-522.94,0.00021917,2]
[402029142,1768487455192,-500.0,0.00021917,2]
[402029143,1768487455201,-536.84611683,0.00021917,2]
[402029144,1768487455210,-500.0,0.00021917,2]
[402029145,1768487455220,-500.0,0.00021917,2]
[402029146,1768487455229,-281.95683481,0.00021917,2]
[402029147,1768487455239,-332.91278295,0.00021917,2]
[402029148,1768487455250,-500.0,0.00021917,2]
[402029149,1768487455259,-560.6269709,0.00021917,2]
[402029150,1768487455269,-500.0,0.00021917,2]
[402029151,1768487455279,-1000.78,0.00021917,2]
[402029152,1768487455288,-500.0,0.00021917,2]
[402029153,1768487455298,-500.0,0.00021917,2]
[402029154,1768487455308,-534.98317174,0.00021917,2]
[402029155,1768487455318,-500.0,0.00021917,2]
[402029156,1768487455328,-500.0,0.00021917,2]
[402029157,1768487455337,-627.64,0.00021917,2]
[402029158,1768487455347,-16346.04,0.00021917,2]
[402029159,1768487455356,-500.0,0.00021917,2]
[402029160,1768487455365,-528.84,0.00021917,2]
[402029161,1768487455374,-962.76,0.00021917,2]
[402029162,1768487455383,-500.0,0.00021917,2]
[402029163,1768487455393,-500.0,0.00021917,2]
[402029164,1768487455402,-500.0,0.00021917,2]
[402029165,1768487455413,-1065.48,0.00021917,2]
[402029166,1768487455423,-500.0,0.00021917,2]
[402029167,1768487455432,-500.0,0.00021917,2]
[402029168,1768487455442,-509.32931644,0.00021917,2]
[402029169,1768487455452,-500.0,0.00021917,2]
[402029170,1768487455461,-2666.01,0.00021917,2]
[402029171,1768487455471,-500.0,0.00021917,2]
[402029172,1768487455480,-500.0,0.00021917,2]
[402029173,1768487455489,-500.0,0.00021917,2]
[402029174,1768487455498,-536.36,0.00021917,2]
[402029175,1768487455507,-500.0,0.00021917,2]
[402029176,1768487455516,-500.0,0.00021917,2]
[402029177,1768487455525,-500.0,0.00021917,2]
[402029178,1768487455534,-500.0,0.00021917,2]
[402029179,1768487455546,-500.0,0.00021917,2]
[402029180,1768487455555,-500.0,0.00021917,2]
[402029181,1768487455564,-500.0,0.00021917,2]
[402029182,1768487455574,-500.0,0.00021917,2]
[402029183,1768487455584,-500.0,0.00021917,2]
[402029184,1768487455593,-500.0,0.00021917,2]
[402029185,1768487455602,-664.46,0.00021917,2]
[402029186,1768487455612,-500.0,0.00021917,2]
[402029187,1768487455621,-500.0,0.00021917,2]
[402029188,1768487455630,-500.0,0.00021917,2]
[402029189,1768487455640,-1141.55,0.00021917,2]
[402029190,1768487455649,-500.0,0.00021917,2]
[402029191,1768487455658,-647.59959212,0.00021917,2]
[402029192,1768487455667,-500.0,0.00021917,2]
[402029193,1768487455677,-500.0,0.00021917,2]
[402029194,1768487455686,-500.0,0.00021917,2]
[402029195,1768487455696,-611.88,0.00021917,2]
[402029196,1768487455705,-500.0,0.00021917,2]
[402029197,1768487455714,-673.68,0.00021917,2]
[402029198,1768487455724,-500.0,0.00021917,2]
[402029199,1768487455733,-527.2570539,0.00021917,2]
[402029200,1768487455743,-1682.86,0.00021917,2]
[402029201,1768487455752,-712.99,0.00021917,2]
[402029202,1768487455760,-500.0,0.00021917,2]
[402029203,1768487455769,-500.0,0.00021917,2]
[402029204,1768487455779,-500.0,0.00021917,2]
[402029205,1768487455788,-500.0,0.00021917,2]
[402029206,1768487455798,-479.17274663,0.00021917,2]
[402029207,1768487455807,-500.0,0.00021917,2]
[402029208,1768487455816,-500.0,0.00021917,2]
[402029209,1768487455825,-693.06,0.00021917,2]
[402029210,1768487455834,-870.35,0.00021917,2]
[402029211,1768487455843,-500.0,0.00021917,2]
[402029212,1768487455852,-3191.7,0.00021917,2]
[402029213,1768487455861,-1884.45,0.00021917,2]
[402029214,1768487455869,-2167.96,0.00021917,2]
[402029215,1768487455879,-1070.45,0.00021917,2]
[402029216,1768487455888,-500.0,0.00021917,2]
[402029217,1768487455899,-664.31,0.00021917,2]
[402029218,1768487455909,-500.0,0.00021917,2]
[402029219,1768487455920,-200.49268574,0.00021917,2]
[402029220,1768487455929,-500.0,0.00021917,2]
[402029221,1768487455938,-500.0,0.00021917,2]
[402029222,1768487455947,-500.0,0.00021917,2]
[402029223,1768487455956,-500.0,0.00021917,2]
[402029224,1768487455966,-546.48,0.00021917,2]
[402029225,1768487455975,-500.0,0.00021917,2]
[402029226,1768487455985,-896.85,0.00021917,2]
[402029227,1768487455993,-500.0,0.00021917,2]
[402029228,1768487456002,-1593.41,0.00021917,2]
[402029229,1768487456011,-627.87,0.00021917,2]
[402029230,1768487456020,-1091.96,0.00021917,2]
[402029231,1768487456030,-822.22,0.00021917,2]
[402029232,1768487456039,-217.35028512,0.00021917,2]
[402029233,1768487456048,-2024.6,0.00021917,2]
[402029234,1768487456058,-500.0,0.00021917,2]
[402029235,1768487456067,-500.0,0.00021917,2]
[402029236,1768487456077,-500.0,0.00021917,2]
[402029237,1768487456086,-505.15455852,0.00021917,2]
[402029238,1768487456095,-507.7691819,0.00021917,2]
[402029239,1768487456104,-500.0,0.00021917,2]
[402029240,1768487456114,-500.0,0.00021917,2]
[402029241,1768487456123,-500.0,0.00021917,2]
[402029242,1768487456133,-500.0,0.00021917,2]
[402029243,1768487456143,-151.0,0.00021918,2]
[402029244,1768487456152,-151.0,0.00021918,2]
[402029245,1768487456162,-153.36815,0.00021918,2]
[402029246,1768487456171,-151.0,0.00021918,2]
[402029247,1768487456181,-151.0,0.00021918,2]
[402029248,1768487456191,-151.0,0.00021918,2]
[402029249,1768487456331,-157.21855,0.00021918,2]
[402029250,1768487456353,-151.0,0.00021918,2]
[402029251,1768487456363,-151.0,0.00021918,2]
[402029252,1768487456372,-151.0,0.00021918,2]
[402029253,1768487456382,-151.0,0.00021918,2]
[402029254,1768487456392,-151.0,0.00021918,2]
[402029255,1768487456402,-188.048775,0.00021918,2]
[402029256,1768487456412,-151.0,0.00021918,2]
[402029257,1768487456423,-154.243865,0.00021918,2]
[402029258,1768487456433,-151.0,0.00021918,2]
[402029259,1768487456443,-151.0,0.00021918,2]
[402029260,1768487456452,-250.199981,0.00021918,2]
[402029261,1768487456462,-616.157776,0.00021918,2]
[402029262,1768487456471,-616.157776,0.00021918,2]
[402029263,1768487456481,-616.157776,0.00021918,2]
[402029264,1768487456493,-616.157776,0.00021918,2]
[402029265,1768487456503,-616.157776,0.00021918,2]
[402029266,1768487456512,-616.157776,0.00021918,2]
[402029267,1768487456522,-616.157776,0.00021918,2]
[402029268,1768487456531,-616.157776,0.00021918,2]
[402029269,1768487456540,-616.157776,0.00021918,2]
[402029270,1768487456552,-616.157776,0.00021918,2]
[402029271,1768487456561,-616.157776,0.00021918,2]
[402029272,1768487456571,-616.157776,0.00021918,2]
[402029273,1768487456581,-616.157776,0.00021918,2]
[402029274,1768487456590,-616.157776,0.00021918,2]
[402029275,1768487456600,-616.157776,0.00021918,2]
[402029276,1768487456609,-616.157776,0.00021918,2]
[402029277,1768487456618,-616.157776,0.00021918,2]
[402029278,1768487456627,-616.157776,0.00021918,2]
[402029279,1768487456636,-616.157776,0.00021918,2]
[402029280,1768487456646,-616.157784,0.00021918,2]
[402029281,1768487456655,-151.0,0.00021918,2]
[402029282,1768487456664,-151.0,0.00021918,2]
[402029283,1768487456673,-151.0,0.00021918,2]
[402029284,1768487456683,-151.0,0.00021918,2]
[402029285,1768487456692,-156.003807,0.00021918,2]
[402029286,1768487456701,-151.0,0.00021918,2]
[402029287,1768487456711,-155.04544,0.00021918,2]
[402029288,1768487456720,-151.0,0.00021918,2]
[402029289,1768487456729,-151.0,0.00021918,2]
[402029290,1768487456738,-151.0,0.00021918,2]
[402029291,1768487456747,-151.0,0.00021918,2]
[402029292,1768487456756,-151.0,0.00021918,2]
[402029293,1768487456765,-151.0,0.00021918,2]
[402029294,1768487456774,-272.502318,0.00021918,2]
[402029295,1768487456783,-213.972567,0.00021918,2]
[402029296,1768487456793,-151.0,0.00021918,2]
[402029297,1768487456807,-172.511817,0.00021918,2]
[402029298,1768487456816,-151.0,0.00021918,2]
[402029299,1768487456825,-225.58796,0.00021918,2]
[402029300,1768487456834,-151.0,0.00021918,2]
[402029301,1768487456844,-151.0,0.00021918,2]
[402029302,1768487456853,-248.372024,0.00021918,2]
[402029303,1768487456862,-179.354254,0.00021918,2]
[402029304,1768487456871,-179.354254,0.00021918,2]
[402029305,1768487456880,-151.0,0.00021918,2]
[402029306,1768487456890,-179.354254,0.00021918,2]
[402029307,1768487456899,-151.0,0.00021918,2]
[402029308,1768487456909,-179.354254,0.00021918,2]
[402029309,1768487456919,-151.0,0.00021918,2]
[402029310,1768487456928,-179.354254,0.00021918,2]
[402029311,1768487456938,-151.0,0.00021918,2]
[402029312,1768487456947,-179.354254,0.00021918,2]
[402029313,1768487456956,-179.354254,0.00021918,2]
[402029314,1768487456964,-179.354254,0.00021918,2]
[402029315,1768487456973,-151.0,0.00021918,2]
[402029316,1768487456982,-179.354254,0.00021918,2]
[402029317,1768487456992,-159.894758,0.00021918,2]
[402029318,1768487457001,-179.354254,0.00021918,2]
[402029319,1768487457010,-179.354254,0.00021918,2]
[402029320,1768487457019,-179.354254,0.00021918,2]
[402029321,1768487457028,-179.354254,0.00021918,2]
[402029322,1768487457037,-179.354254,0.00021918,2]
[402029323,1768487457046,-179.354254,0.00021918,2]
[402029324,1768487457055,-179.354254,0.00021918,2]
[402029325,1768487457065,-179.354254,0.00021918,2]
[402029326,1768487457074,-179.354254,0.00021918,2]
[402029327,1768487457083,-179.354254,0.00021918,2]
[402029328,1768487457093,-179.354254,0.00021918,2]
[402029329,1768487457103,-157.209828,0.00021918,2]
[402029330,1768487457112,-161.615592,0.00021918,2]
[402029331,1768487457122,-159.661514,0.00021918,2]
[402029332,1768487457131,-159.661514,0.00021918,2]
[402029333,1768487457141,-159.661514,0.00021918,2]
[402029334,1768487457150,-159.661514,0.00021918,2]
[402029335,1768487457159,-159.661514,0.00021918,2]
[402029336,1768487457169,-159.661514,0.00021918,2]
[402029337,1768487457177,-159.661514,0.00021918,2]
[402029338,1768487457187,-159.661514,0.00021918,2]
[402029339,1768487457196,-159.661514,0.00021918,2]
[402029340,1768487457205,-159.661514,0.00021918,2]
[402029341,1768487457214,-159.661514,0.00021918,2]
[402029342,1768487457224,-159.661514,0.00021918,2]
[402029343,1768487457234,-159.661514,0.00021918,2]
[402029344,1768487457244,-151.0,0.00021918,2]
[402029345,1768487457253,-159.661514,0.00021918,2]
[402029346,1768487457262,-151.0,0.00021918,2]
[402029347,1768487457271,-159.661514,0.00021918,2]
[402029348,1768487457282,-151.0,0.00021918,2]
[402029349,1768487457302,-159.661514,0.00021918,2]
[402029350,1768487457319,-151.0,0.00021918,2]
[402029351,1768487457337,-159.661514,0.00021918,2]
[402029352,1768487457356,-151.0,0.00021918,2]
[402029353,1768487457373,-159.661514,0.00021918,2]
[402029354,1768487457389,-151.0,0.00021918,2]
[402029355,1768487457406,-159.661514,0.00021918,2]
[402029356,1768487457421,-151.0,0.00021918,2]
[402029357,1768487457438,-159.661521,0.00021918,2]
[402029358,1768487457456,-151.0,0.00021918,2]
[402029359,1768487457475,-151.0,0.00021918,2]
[402029360,1768487457487,-151.0,0.00021918,2]
[402029361,1768487457505,-267.70555,0.00021918,2]
[402029362,1768487457518,-194.325737,0.00021918,2]
[402029363,1768487457534,-194.325737,0.00021918,2]
[402029364,1768487457547,-194.325737,0.00021918,2]
[402029365,1768487457562,-194.325737,0.00021918,2]
[402029366,1768487457576,-194.325737,0.00021918,2]
[402029367,1768487457590,-194.325737,0.00021918,2]
[402029368,1768487457604,-194.325737,0.00021918,2]
[402029369,1768487457618,-194.325737,0.00021918,2]
[402029370,1768487457632,-194.325737,0.00021918,2]
[402029371,1768487457646,-194.325737,0.00021918,2]
[402029372,1768487457660,-194.325737,0.00021918,2]
[402029373,1768487457675,-194.325737,0.00021918,2]
[402029374,1768487457689,-194.325737,0.00021918,2]
[402029375,1768487457704,-194.325737,0.00021918,2]
[402029376,1768487457718,-194.325737,0.00021918,2]
[402029377,1768487457732,-194.325737,0.00021918,2]
[402029378,1768487457746,-194.325737,0.00021918,2]
[402029379,1768487457760,-194.325737,0.00021918,2]
[402029380,1768487457774,-194.325737,0.00021918,2]
[402029381,1768487457788,-194.325738,0.00021918,2]
[402029382,1768487457803,-151.0,0.00021918,2]
[402029383,1768487457817,-151.0,0.00021918,2]
[402029384,1768487457831,-151.0,0.00021918,2]
[402029385,1768487457845,-151.0,0.00021918,2]
[402029386,1768487457863,-272.183326,0.00021918,2]
[402029387,1768487457877,-151.0,0.00021918,2]
[402029388,1768487457892,-151.0,0.00021918,2]
[402029389,1768487457906,-151.0,0.00021918,2]
[402029390,1768487457919,-151.0,0.00021918,2]
[402029391,1768487457934,-191.697887,0.00021918,2]
[402029392,1768487457948,-151.082879,0.00021918,2]
[402029393,1768487457963,-1424.748661,0.00021918,2]
[402029394,1768487457976,-1424.748661,0.00021918,2]
[402029395,1768487457991,-1424.748661,0.00021918,2]
[402029396,1768487458005,-1424.748661,0.00021918,2]
[402029397,1768487458019,-1424.748661,0.00021918,2]
[402029398,1768487458034,-1424.748661,0.00021918,2]
[402029399,1768487458050,-1424.748661,0.00021918,2]
[402029400,1768487458065,-1424.748661,0.00021918,2]
[402029401,1768487458080,-1424.748661,0.00021918,2]
[402029402,1768487458095,-163.67461,0.00021918,2]
[402029403,1768487458110,-1424.748661,0.00021918,2]
[402029404,1768487458124,-1424.748661,0.00021918,2]
[402029405,1768487458139,-1424.748661,0.00021918,2]
[402029406,1768487458154,-1424.748661,0.00021918,2]
[402029407,1768487458169,-1424.748661,0.00021918,2]
[402029408,1768487458184,-1424.748661,0.00021918,2]
[402029409,1768487458198,-1424.748661,0.00021918,2]
[402029410,1768487458212,-1424.748661,0.00021918,2]
[402029411,1768487458229,-1424.748661,0.00021918,2]
[402029412,1768487458246,-1424.748661,0.00021918,2]
[402029413,1768487458261,-1424.748661,0.00021918,2]
[402029414,1768487458276,-151.0,0.00021918,2]
[402029415,1768487458290,-151.0,0.00021918,2]
[402029416,1768487458305,-151.0,0.00021918,2]
[402029417,1768487458324,-151.0,0.00021918,2]
[402029418,1768487458339,-152.146951,0.00021918,2]
[402029419,1768487458354,-151.0,0.00021918,2]
[402029420,1768487458369,-151.0,0.00021918,2]
[402029421,1768487458384,-151.0,0.00021918,2]
[402029422,1768487458398,-151.0,0.00021918,2]
[402029423,1768487458413,-151.0,0.00021918,2]
[402029424,1768487458427,-170.244151,0.00021918,2]
[402029425,1768487458442,-237.778482,0.00021918,2]
[402029426,1768487458457,-237.778482,0.00021918,2]
[402029427,1768487458471,-237.778482,0.00021918,2]
[402029428,1768487458486,-237.778482,0.00021918,2]
[402029429,1768487458501,-237.778482,0.00021918,2]
[402029430,1768487458516,-237.778482,0.00021918,2]
[402029431,1768487458531,-237.778482,0.00021918,2]
[402029432,1768487458547,-237.778482,0.00021918,2]
[402029433,1768487458563,-237.778482,0.00021918,2]
[402029434,1768487458577,-237.778482,0.00021918,2]
[402029435,1768487458592,-237.778482,0.00021918,2]
[402029436,1768487458607,-237.778482,0.00021918,2]
[402029437,1768487458624,-237.778482,0.00021918,2]
[402029438,1768487458637,-237.778482,0.00021918,2]
[402029439,1768487458652,-237.778482,0.00021918,2]
[402029440,1768487458666,-237.778482,0.00021918,2]
[402029441,1768487458682,-237.778482,0.00021918,2]
[402029442,1768487458695,-237.778482,0.00021918,2]
[402029443,1768487458711,-237.778482,0.00021918,2]
[402029444,1768487458726,-237.778474,0.00021918,2]
[402029445,1768487458742,-151.0,0.00021918,2]
[402029446,1768487458752,-153.309995,0.00021918,2]
[402029447,1768487458762,-151.0,0.00021918,2]
[402029448,1768487458772,-151.0,0.00021918,2]
[402029449,1768487459007,-152.385309,0.00021918,2]
[402029450,1768487459026,-151.0,0.00021918,2]
[402029451,1768487459035,-151.0,0.00021918,2]
[402029452,1768487459045,-151.0,0.00021918,2]
[402029453,1768487459055,-151.0,0.00021918,2]
[402029454,1768487459064,-151.0,0.00021918,2]
[402029455,1768487459075,-151.0,0.00021918,2]
[402029456,1768487459085,-151.0,0.00021918,2]
[402029457,1768487459095,-151.0,0.00021918,2]
[402029458,1768487459104,-151.0,0.00021918,2]
[402029459,1768487459113,-151.0,0.00021918,2]
[402029460,1768487459122,-151.0,0.00021918,2]
[402029461,1768487459131,-151.659476,0.00021918,2]
[402029462,1768487459140,-151.0,0.00021918,2]
[402029463,1768487459150,-161.937816,0.00021918,2]
[402029464,1768487459159,-427.21115,0.00021918,2]
[402029465,1768487459169,-427.21115,0.00021918,2]
[402029466,1768487459179,-427.21115,0.00021918,2]
[402029467,1768487459188,-427.21115,0.00021918,2]
[402029468,1768487459198,-427.21115,0.00021918,2]
[402029469,1768487459207,-427.21115,0.00021918,2]
[402029470,1768487459216,-427.21115,0.00021918,2]